fUST/lending_fUST_20251103
["ID","MTS","AMOUNT","RATE_DAILY","PERIOD"]
[392934848,1762156143521,500.0,0.00037382,60]
[392934849,1762156143747,476.37070182,0.00037382,60]
[392934850,1762156145449,500.0,0.00037382,60]
[392934851,1762156145685,500.0,0.00037382,60]
[392934852,1762156146160,500.0,0.00037382,60]
[392934853,1762156146440,486.78737845,0.00037382,60]
[392934854,1762156148147,500.0,0.00037382,60]
[392934855,1762156148386,500.0,0.00037382,60]
[392934856,1762156148568,500.0,0.00037382,60]
[392934857,1762156148653,298.76,0.00037382,60]
[392934858,1762156148843,501.38362982,0.00037382,60]
[392934859,1762156149181,500.0,0.00037382,60]
[392934860,1762156149296,500.0,0.00037382,60]
[392934861,1762156149373,239.21,0.00037382,60]
[392934862,1762156149546,500.0,0.00037382,60]
[392934863,1762156149817,500.0,0.00037382,60]
[392934864,1762156151130,500.0,0.00037382,60]
[392934865,1762156151411,500.0,0.00037382,60]
[392934866,1762156151662,500.0,0.00037382,60]
[392934867,1762156151768,500.0,0.00037382,60]
[392934868,1762156151920,280.71,0.00037382,60]
[392934869,1762156152024,500.0,0.00037382,60]
[392934870,1762156152321,500.0,0.00037382,60]
[392934871,1762156152439,500.0,0.00037382,60]
[392934872,1762156152566,500.0,0.00037382,60]
[392934873,1762156152807,284.76,0.00037382,60]
[392934874,1762156153093,500.0,0.00037382,60]
[392934875,1762156153339,500.0,0.00037382,60]
[392934876,1762156153560,500.0,0.00037382,60]
[392934877,1762156153594,500.0,0.00037382,60]
[392934878,1762156153791,500.0,0.00037382,60]
[392934879,1762156153838,500.0,0.00037382,60]
[392934880,1762156154030,500.0,0.00037382,60]
[392934881,1762156154064,500.0,0.00037382,60]
[392934882,1762156154098,500.0,0.00037382,60]
[392934883,1762156154273,599.85,0.00037382,60]
[392934884,1762156154321,500.0,0.00037382,60]
[392934885,1762156154568,552.38417507,0.00037382,60]
[392934886,1762156154673,500.0,0.00037382,60]
[392934887,1762156154956,500.0,0.00037382,60]
[392934888,1762156155086,499.03,0.00037382,60]
[392934889,1762156155202,500.0,0.00037382,60]
[392934890,1762156155798,500.0,0.00037382,60]
[392934891,1762156156174,500.0,0.00037382,60]
[392934892,1762156156325,500.0,0.00037382,60]
[392934893,1762156156559,500.0,0.00037382,60]
[392934894,1762156159074,500.0,0.00037382,60]
[392934895,1762156159446,477.35961366,0.00037382,60]
[392934896,1762156160589,500.0,0.00037382,60]
[392934897,1762156160835,500.0,0.00037382,60]
[392934898,1762156161077,500.0,0.00037382,60]
[392934899,1762156161255,500.0,0.00037382,60]
[392934900,1762156161341,500.0,0.00037382,60]
[392934901,1762156161577,500.0,0.00037382,60]
[392934902,1762156161619,503.1268746,0.00037382,60]
[392934903,1762156161815,500.0,0.00037382,60]
[392934904,1762156162058,500.0,0.00037382,60]
[392934905,1762156162244,500.0,0.00037382,60]
[392934906,1762156162299,500.0,0.00037382,60]
[392934907,1762156162482,500.0,0.00037382,60]
[392934908,1762156162727,500.0,0.00037382,60]
[392934909,1762156162795,500.0,0.00037382,60]
[392934910,1762156162975,325.33357336,0.00037382,60]
[392934911,1762156163035,500.0,0.00037382,60]
[392934912,1762156163279,500.0,0.00037382,60]
[392934913,1762156163316,500.0,0.00037382,60]
[392934914,1762156163509,500.0,0.00037382,60]
[392934915,1762156163548,500.0,0.00037382,60]
[392934916,1762156163775,500.0,0.00037382,60]
[392934917,1762156163814,500.0,0.00037382,60]
[392934918,1762156164014,407.54,0.00037382,60]
[392934919,1762156164055,214.69153728,0.00037382,60]
[392934920,1762156166119,500.0,0.00037391,60]
[392934921,1762156166397,502.32563119,0.00037391,60]
[392934922,1762156166433,500.0,0.00037391,60]
[392934923,1762156166666,500.0,0.00037391,60]
[392934924,1762156167697,1014.87,0.00037391,60]
[392934925,1762156167936,1014.87,0.00037391,60]
[392934926,1762156168195,1014.87,0.00037391,60]
[392934927,1762156168412,500.0,0.00037391,60]
[392934928,1762156168471,1014.87,0.00037391,60]
[392934929,1762156168670,500.0,0.00037391,60]
[392934930,1762156168710,1014.87,0.00037391,60]
[392934931,1762156168897,500.0,0.00037391,60]
[392934932,1762156168944,1014.87,0.00037391,60]
[392934933,1762156169127,500.0,0.00037391,60]
[392934934,1762156169353,1014.87,0.00037391,60]
[392934935,1762156169386,502.11330971,0.00037391,60]
[392934936,1762156169556,1014.87,0.00037391,60]
[392934937,1762156169814,500.0,0.00037391,60]
[392934938,1762156169849,1014.87,0.00037391,60]
[392934939,1762156170041,500.0,0.00037391,60]
[392934940,1762156170078,1014.87,0.00037391,60]
[392934941,1762156170283,500.0,0.00037391,60]
[392934942,1762156170319,1014.87,0.00037391,60]
[392934943,1762156170517,532.81974291,0.00037391,60]
[392934944,1762156170558,1014.87,0.00037391,60]
[392934945,1762156170800,1014.87,0.00037391,60]
[392934946,1762156171034,1014.87,0.00037391,60]
[392934947,1762156171280,1014.87,0.00037391,60]
[392934948,1762156171546,1014.87,0.00037391,60]
[392934949,1762156171864,1014.87,0.00037391,60]
[392934950,1762156172099,1014.87,0.00037391,60]
[392934951,1762156172361,1014.87,0.00037391,60]
[392934952,1762156172640,1014.87,0.00037391,60]
[392934953,1762156172885,1014.87,0.00037391,120]
[392934954,1762156173166,1014.87,0.00037391,120]
[392934955,1762156173414,1014.87,0.00037391,120]
[392934956,1762156173656,1015.03,0.00037391,120]
[392934957,1762156173865,500.0,0.00037391,60]
[392934958,1762156174106,505.00772353,0.00037391,60]
[392934959,1762156175550,500.0,0.00037391,60]
[392934960,1762156175960,500.0,0.00037391,60]
[392934961,1762156175999,500.0,0.00037391,60]
[392934962,1762156176233,500.0,0.00037391,60]
[392934963,1762156176268,501.35993659,0.00037391,60]
[392934964,1762156176471,500.0,0.00037391,60]
[392934965,1762156176735,531.59515198,0.00037391,60]
[392934966,1762156177784,500.0,0.00037391,60]
[392934967,1762156178004,500.0,0.00037391,60]
[392934968,1762156178242,500.0,0.00037391,60]
[392934969,1762156178473,409.03283383,0.00037391,60]
[392934970,1762156179075,494.07291013,0.00037391,60]
[392934971,1762156180831,500.0,0.00037391,60]
[392934972,1762156180914,500.0,0.00037391,60]
[392934973,1762156181094,504.03801681,0.00037391,60]
[392934974,1762156181152,524.78140439,0.00037391,60]
[392934975,1762156181297,500.0,0.00037391,60]
[392934976,1762156181744,500.0,0.00037391,60]
[392934977,1762156182176,500.0,0.00037391,60]
[392934978,1762156182448,500.0,0.00037391,60]
[392934979,1762156182700,500.0,0.00037391,60]
[392934980,1762156182939,500.0,0.00037391,60]
[392934981,1762156183171,500.0,0.00037391,60]
[392934982,1762156183405,500.0,0.00037391,60]
[392934983,1762156183646,494.9,0.00037391,60]
[392934984,1762156184564,500.0,0.00037391,60]
[392934985,1762156184817,500.0,0.00037391,60]
[392934986,1762156185126,500.0,0.00037391,60]
[392934987,1762156185394,500.0,0.00037391,60]
[392934988,1762156185645,500.0,0.00037391,60]
[392934989,1762156185904,500.0,0.00037391,60]
[392934990,1762156186042,500.0,0.00037391,60]
[392934991,1762156186148,526.71435423,0.00037391,60]
[392934992,1762156186285,501.73168013,0.00037391,60]
[392934996,1762156188171,500.0,0.00037391,60]
[392934997,1762156188449,500.0,0.00037391,60]
[392934998,1762156188484,500.0,0.00037391,60]
[392934999,1762156188733,500.0,0.00037391,60]
[392935000,1762156191917,500.0,0.00037391,60]
[392935001,1762156192153,514.64187202,0.00037391,60]
[392935002,1762156192656,500.0,0.00037391,60]
[392935003,1762156192893,501.86389569,0.00037391,60]
[392935004,1762156195528,500.0,0.00037391,60]
[392935005,1762156195755,500.0,0.00037391,60]
[392935006,1762156197391,500.0,0.00037391,60]
[392935007,1762156197689,500.0,0.00037391,60]
[392935008,1762156197935,500.0,0.00037391,60]
[392935009,1762156198171,500.0,0.00037391,60]
[392935010,1762156198427,166.48,0.00037391,60]
[392935011,1762156199216,500.0,0.00037391,60]
[392935012,1762156199452,500.0,0.00037391,60]
[392935013,1762156199617,500.0,0.00037391,60]
[392935014,1762156199675,500.0,0.00037391,60]
[392935015,1762156199853,500.0,0.00037391,60]
[392935016,1762156199910,500.0,0.00037391,60]
[392935017,1762156199950,500.0,0.00037391,60]
[392935018,1762156200099,500.0,0.00037391,60]
[392935019,1762156200151,500.0,0.00037391,60]
[392935020,1762156200192,500.0,0.00037391,60]
[392935021,1762156200333,211.66667582,0.00037391,60]
[392935022,1762156200405,194.4,0.00037391,60]
[392935023,1762156200815,500.0,0.00037391,60]
[392935024,1762156201064,500.0,0.00037391,60]
[392935025,1762156201303,500.0,0.00037391,60]
[392935026,1762156202591,500.0,0.00037391,60]
[392935027,1762156202876,500.0,0.00037391,60]
[392935028,1762156203151,500.0,0.00037391,60]
[392935029,1762156203386,500.0,0.00037391,60]
[392935030,1762156203589,500.0,0.00037391,60]
[392935031,1762156203761,500.0,0.00037391,60]
[392935032,1762156203832,502.20462789,0.00037391,60]
[392935033,1762156203884,500.0,0.00037391,60]
[392935034,1762156204129,643.2,0.00037391,60]
[392935035,1762156204360,500.0,0.00037391,60]
[392935036,1762156204598,500.0,0.00037391,60]
[392935037,1762156204714,500.0,0.00037391,60]
[392935038,1762156204832,189.3,0.00037391,60]
[392935039,1762156204945,500.0,0.00037391,60]
[392935040,1762156205187,500.0,0.00037391,60]
[392935041,1762156205434,500.0,0.00037391,60]
[392935042,1762156205664,500.0,0.00037391,60]
[392935043,1762156206766,500.0,0.00037391,60]
[392935044,1762156207041,500.0,0.00037391,60]
[392935045,1762156207235,500.0,0.00037391,60]
[392935046,1762156207275,434.73296249,0.00037391,60]
[392935047,1762156207462,500.0,0.00037391,60]
[392935048,1762156209164,500.0,0.00037391,60]
[392935049,1762156209388,500.0,0.00037391,60]
[392935052,1762156210030,500.0,0.00037391,60]
[392935053,1762156210254,500.0,0.00037391,60]
[392935054,1762156210299,500.0,0.00037391,60]
[392935055,1762156210490,500.0,0.00037391,60]
[392935056,1762156210531,500.0,0.00037391,60]
[392935057,1762156210791,500.0,0.00037391,60]
[392935058,1762156211299,500.0,0.00037391,60]
[392935059,1762156211646,610.49441842,0.00037391,60]
[392935060,1762156211698,500.0,0.00037391,60]
[392935061,1762156211935,500.0,0.00037391,60]
[392935062,1762156212571,500.0,0.00037391,60]
[392935063,1762156212813,500.0,0.00037391,60]
[392935064,1762156217887,500.0,0.00037391,60]
[392935065,1762156217975,500.0,0.00037391,60]
[392935066,1762156218208,500.0,0.00037391,60]
[392935067,1762156218246,500.0,0.00037391,60]
[392935068,1762156218469,500.0,0.00037391,60]
[392935069,1762156218506,500.0,0.00037391,60]
[392935070,1762156218663,500.0,0.00037391,60]
[392935071,1762156218714,500.0,0.00037391,60]
[392935072,1762156218748,500.0,0.00037391,60]
[392935073,1762156218909,500.0,0.00037391,60]
[392935074,1762156218944,500.0,0.00037391,60]
[392935075,1762156218992,500.0,0.00037391,60]
[392935076,1762156219145,500.0,0.00037391,60]
[392935077,1762156219186,500.0,0.00037391,60]
[392935078,1762156219222,513.0,0.00037391,60]
[392935079,1762156219382,500.0,0.00037391,60]
[392935080,1762156219420,299.0,0.00037391,60]
[392935081,1762156219969,500.0,0.00037391,60]
[392935082,1762156220248,500.0,0.00037391,60]
[392935083,1762156220496,216.78,0.00037391,60]
[392935084,1762156223248,500.0,0.00037391,60]
[392935085,1762156223477,500.0,0.00037391,60]
[392935086,1762156223717,234.71971892,0.00037391,60]
[392935087,1762156224601,500.0,0.00037391,60]
[392935088,1762156224857,500.0,0.00037391,60]
[392935089,1762156225098,500.0,0.00037391,60]
[392935090,1762156225339,500.0,0.00037391,60]
[392935091,1762156225578,500.0,0.00037391,60]
[392935092,1762156225838,500.0,0.00037391,60]
[392935093,1762156226852,500.0,0.00037391,60]
[392935094,1762156227230,505.3345209,0.00037391,60]
[392935095,1762156227279,500.0,0.00037391,60]
[392935096,1762156227526,500.0,0.00037391,60]
[392935097,1762156229212,500.0,0.00037391,60]
[392935098,1762156229286,500.0,0.00037391,60]
[392935099,1762156229455,500.0,0.00037391,60]
[392935100,1762156229685,500.0,0.00037391,60]
[392935101,1762156229728,500.0,0.00037391,60]
[392935102,1762156229978,500.0,0.00037391,60]
[392935103,1762156230016,500.0,0.00037391,60]
[392935104,1762156230224,368.76,0.00037391,60]
[392935133,1762156232806,-278.71284974,0.00024888,2]
[392935136,1762156232818,-555.63264397,0.00024888,2]
[392935138,1762156232828,-500.0,0.000249,2]
[392935140,1762156232836,-150.0,0.00024938,2]
[392935142,1762156232847,-346.49617854,0.00024988,2]
[392935144,1762156232856,-172.90753969,0.00025996,2]
[392935147,1762156232877,-329.48859549,0.00025996,2]
[392935149,1762156232888,-404.18480381,0.00026597,2]
[392935151,1762156232897,-2020.443883,0.00026701,2]
[392935153,1762156232906,-1200.0,0.00026895,2]
[392935155,1762156232914,-276.12170532,0.00026896,2]
[392935157,1762156232923,-279.0,0.00026896,2]
[392935159,1762156232932,-300.0,0.00026896,2]
[392935161,1762156232941,-300.0,0.00026896,2]
[392935163,1762156232951,-50000.0,0.00026897,2]
[392935165,1762156232961,-1200.0,0.00026898,2]
[392935167,1762156232970,-2897.73,0.000269,2]
[392935169,1762156232979,-177.0,0.00026938,2]
[392935171,1762156232988,-151.0,0.00026984,2]
[392935173,1762156232997,-151.0,0.00026984,2]
[392935175,1762156233006,-151.0,0.00026984,2]
[392935177,1762156233015,-151.0,0.00026984,2]
[392935179,1762156233024,-151.0,0.00026984,2]
[392935181,1762156233032,-151.0,0.00026984,2]
[392935183,1762156233041,-151.0,0.00026984,2]
[392935185,1762156233049,-151.0,0.00026984,2]
[392935187,1762156233058,-151.0,0.00026984,2]
[392935189,1762156233066,-151.0,0.00026984,2]
[392935191,1762156233075,-151.0,0.00026984,2]
[392935193,1762156233084,-284.63813991,0.00026984,2]
[392935195,1762156233093,-13518.7218235,0.0002699,2]
[392935197,1762156233101,-6566.7069501,0.0002699,2]
[392935199,1762156233110,-970.52,0.0002699,10]
[392935201,1762156233119,-163.43436859,0.00026999,2]
[392935203,1762156233128,-500.0,0.00026999,2]
[392935205,1762156233137,-500.0,0.00026999,2]
[392935207,1762156233146,-500.0,0.00026999,2]
[392935209,1762156233154,-500.0,0.00026999,2]
[392935211,1762156233163,-35954.7847,0.00027,2]
[392935213,1762156233172,-1045.061535,0.00027119,2]
[392935215,1762156233182,-2897.73,0.000272,2]
[392935217,1762156233191,-2897.73,0.000275,2]
[392935219,1762156233200,-500.0,0.00027548,2]
[392935221,1762156233209,-2897.73,0.000278,2]
[392935223,1762156233218,-551.04743742,0.00027822,2]
[392935225,1762156233228,-2897.73,0.000281,2]
[392935228,1762156233241,-2897.73,0.000284,2]
[392935230,1762156233250,-2897.73,0.000287,2]
[392935232,1762156233259,-204.0,0.00028938,2]
[392935234,1762156233269,-2897.73,0.00029,2]
[392935236,1762156233278,-420.0,0.00029081,2]
[392935238,1762156233286,-291.0,0.00029081,2]
[392935240,1762156233295,-1680.0,0.00029083,2]
[392935242,1762156233304,-791.47,0.000291,7]
[392935244,1762156233313,-4133.14590554,0.0002917,2]
[392935245,1762156233322,-1759.94814735,0.0002917,2]
[392935248,1762156233331,-1759.94814735,0.0002917,2]
[392935250,1762156233341,-1759.94814735,0.0002917,2]
[392935252,1762156233350,-1680.0,0.00029208,2]
[392935253,1762156233359,-2897.73,0.000293,2]
[392935255,1762156233368,-500.0,0.00029329,2]
[392935257,1762156233378,-2897.73,0.000296,2]
[392935259,1762156233387,-4133.14590554,0.00030374,2]
[392935261,1762156233396,-1759.94814735,0.00030374,2]
[392935263,1762156233405,-1759.94814735,0.00030374,2]
[392935266,1762156233415,-1759.94814735,0.00030374,2]
[392935267,1762156233424,-160.0,0.000304,2]
[392935270,1762156233433,-231.0,0.00030938,2]
[392935271,1762156233442,-360.0,0.00030948,2]
[392935273,1762156233451,-200.0,0.00031,7]
[392935275,1762156233460,-587.0,0.00031443,2]
[392935277,1762156233469,-1981.0,0.00031445,3]
[392935279,1762156233479,-200.0,0.0003151,7]
[392935281,1762156233488,-4133.14590554,0.00031578,3]
[392935283,1762156233497,-1759.94814735,0.00031578,3]
[392935285,1762156233507,-1759.94814735,0.00031578,3]
[392935287,1762156233516,-1759.94814735,0.00031578,3]
[392935289,1762156233525,-2351.0,0.0003172,3]
[392935291,1762156233533,-316.32,0.000318,14]
[392935293,1762156233543,-314.84796548,0.00032,2]
[392935295,1762156233552,-200.0,0.000321,7]
[392935297,1762156233561,-191.29,0.0003251,7]
[392935299,1762156233570,-637.537,0.00032766,2]
[392935301,1762156233579,-13518.7218235,0.00032771,2]
[392935303,1762156233587,-6566.7069501,0.00032771,2]
[392935305,1762156233596,-4133.14590554,0.00032781,3]
[392935307,1762156233605,-1759.94814735,0.00032781,3]
[392935309,1762156233615,-258.0,0.00032938,120]
[392935311,1762156233624,-200.0,0.000331,7]
[392935313,1762156233633,-314.84796548,0.00033312,2]
[392935315,1762156233642,-4133.14590554,0.00033985,4]
[392935317,1762156233651,-823.0,0.00033997,2]
[392935320,1762156233660,-500.0,0.00034097,2]
[392935322,1762156233669,-200.0,0.000341,7]
[392935324,1762156233683,-314.84796548,0.00034624,2]
[392935325,1762156233692,-285.0,0.00034938,120]
[392935328,1762156233701,-200.0,0.000351,7]
[392935330,1762156233711,-4133.14590554,0.00035189,4]
[392935332,1762156233720,-1000.0,0.00035231,2]
[392935334,1762156233729,-1000.0,0.00035231,2]
[392935336,1762156233738,-1000.0,0.00035231,2]
[392935338,1762156233747,-1000.0,0.00035231,2]
[392935340,1762156233756,-1092.10286408,0.00035231,2]
[392935342,1762156233765,-460.0,0.0003526,2]
[392935344,1762156233774,-441.0,0.0003526,2]
[392935346,1762156233783,-151.0,0.0003526,2]
[392935348,1762156233792,-460.0,0.00035315,2]
[392935350,1762156233801,-441.0,0.00035315,2]
[392935352,1762156233813,-151.0,0.00035315,2]
[392935354,1762156233822,-460.0,0.0003537,2]
[392935356,1762156233831,-441.0,0.0003537,2]
[392935358,1762156233840,-198.38259285,0.0003537,2]
[392935360,1762156233851,-500.0,0.00035422,2]
[392935362,1762156233861,-688.77,0.00035423,3]
[392935364,1762156233870,-460.0,0.00035424,2]
[392935366,1762156233881,-441.0,0.00035424,2]
[392935368,1762156233893,-500.0,0.00035432,2]
[392935370,1762156233903,-1336.7280427,0.00035433,2]
[392935372,1762156233912,-15706.5462344,0.00035433,2]
[392935373,1762156233921,-1776.6371317,0.00035433,2]
[392935375,1762156233930,-224.1898846,0.00035433,2]
[392935378,1762156233939,-151.0,0.00035433,31]
[392935380,1762156233948,-151.0,0.00035433,30]
[392935382,1762156233957,-151.0,0.00035433,30]
[392935384,1762156233966,-1300.0,0.00035464,7]
[392935386,1762156233976,-13518.7218235,0.00035469,3]
[392935387,1762156233986,-6566.7069501,0.00035469,3]
[392935388,1762156233995,-460.0,0.00035479,2]
[392935389,1762156234004,-441.0,0.00035479,2]
[392935391,1762156234013,-316.32,0.000355,30]
[392935393,1762156234023,-460.0,0.00035534,2]
[392935394,1762156234032,-441.0,0.00035534,2]
[392935395,1762156234041,-460.0,0.00035589,2]
[392935396,1762156234050,-441.0,0.00035589,2]
[392935397,1762156234059,-460.0,0.00035644,2]
[392935398,1762156234068,-441.0,0.00035644,2]
[392935399,1762156234077,-460.0,0.00035698,2]
[392935400,1762156234086,-441.0,0.00035698,2]
[392935401,1762156234096,-460.0,0.00035753,2]
[392935402,1762156234105,-441.0,0.00035753,2]
[392935403,1762156234114,-168.0,0.00035774,120]
[392935404,1762156234123,-460.0,0.00035808,2]
[392935405,1762156234133,-441.0,0.00035808,2]
[392935406,1762156234142,-460.0,0.00035863,2]
[392935407,1762156234151,-441.0,0.00035863,2]
[392935408,1762156234160,-460.0,0.00035918,2]
[392935409,1762156234170,-441.0,0.00035918,2]
[392935410,1762156234179,-314.84796548,0.00035936,2]
[392935411,1762156234188,-460.0,0.00035972,2]
[392935412,1762156234197,-441.0,0.00035972,2]
[392935413,1762156234206,-460.0,0.00036027,2]
[392935414,1762156234215,-441.0,0.00036027,2]
[392935415,1762156234225,-2239.08166196,0.0003606,2]
[392935416,1762156234234,-1174.75369316,0.00036065,2]
[392935417,1762156234243,-460.0,0.00036082,2]
[392935418,1762156234252,-441.0,0.00036082,2]
[392935419,1762156234262,-791.47,0.000361,7]
[392935420,1762156234271,-460.0,0.00036137,2]
[392935421,1762156234279,-441.0,0.00036137,2]
[392935422,1762156234288,-501.73904792,0.00036173,4]
[392935423,1762156234298,-500.0,0.00036186,2]
[392935424,1762156234306,-13518.7218235,0.00036187,3]
[392935425,1762156234315,-6566.7069501,0.00036187,3]
[392935426,1762156234325,-460.0,0.00036192,2]
[392935427,1762156234334,-441.0,0.00036192,2]
[392935428,1762156234343,-500.0,0.00036196,2]
[392935429,1762156234352,-2330.33,0.00036197,2]
[392935430,1762156234361,-2330.33,0.00036197,2]
[392935431,1762156234370,-2330.33,0.00036197,2]
[392935432,1762156234378,-2330.33,0.00036197,2]
[392935433,1762156234387,-2330.33,0.00036197,2]
[392935434,1762156234397,-2330.33,0.00036197,2]
[392935435,1762156234406,-2330.33,0.00036197,2]
[392935436,1762156234415,-2330.33,0.00036197,2]
[392935437,1762156234423,-2330.33,0.00036197,2]
[392935438,1762156234432,-2330.33,0.00036197,2]
[392935439,1762156234441,-2330.33,0.00036197,2]
[392935440,1762156234449,-2330.33,0.00036197,2]
[392935441,1762156234458,-2330.33,0.00036197,2]
[392935442,1762156234467,-2330.33,0.00036197,2]
[392935443,1762156234475,-2330.33,0.00036197,2]
[392935444,1762156234484,-500.0,0.00036197,2]
[392935445,1762156234493,-500.0,0.00036197,2]
[392935446,1762156234502,-151.0,0.00036197,31]
[392935447,1762156234511,-151.0,0.00036197,31]
[392935448,1762156234520,-151.0,0.00036197,30]
[392935449,1762156234529,-54074.8872938,0.00036198,3]
[392935450,1762156234538,-26266.8278004,0.00036198,3]
[392935451,1762156234547,-151.0,0.00036198,2]
[392935452,1762156234555,-151.0,0.00036198,2]
[392935453,1762156234564,-151.0,0.00036198,2]
[392935454,1762156234573,-151.0,0.00036198,2]
[392935455,1762156234582,-151.0,0.00036198,30]
[392935456,1762156234590,-500.0,0.00036206,2]
[392935457,1762156234599,-317.3,0.00036207,14]
[392935458,1762156234608,-2330.33,0.00036207,2]
[392935459,1762156234616,-2330.33,0.00036207,2]
[392935460,1762156234625,-2330.33,0.00036207,2]
[392935461,1762156234634,-2330.33,0.00036207,2]
[392935462,1762156234643,-2330.33,0.00036207,2]
[392935463,1762156234651,-2330.33,0.00036207,2]
[392935464,1762156234660,-2330.33,0.00036207,2]
[392935465,1762156234669,-2330.33,0.00036207,2]
[392935466,1762156234678,-2330.39536533,0.00036207,2]
[392935467,1762156234687,-500.0,0.00036207,2]
[392935468,1762156234695,-500.0,0.00036207,2]
[392935469,1762156234704,-209.83211409,0.00036207,2]
[392935470,1762156234713,-177.920072,0.00036207,31]
[392935471,1762156234722,-151.0,0.00036208,2]
[392935472,1762156234732,-151.0,0.00036208,2]
[392935473,1762156234741,-151.0,0.00036208,2]
[392935474,1762156234750,-151.0,0.00036208,2]
[392935475,1762156234759,-460.0,0.00036246,2]
[392935476,1762156234768,-441.0,0.00036246,2]
[392935477,1762156234777,-1300.0,0.00036286,7]
[392935478,1762156234786,-460.0,0.00036301,2]
[392935479,1762156234794,-441.0,0.00036301,2]
[392935480,1762156234805,-532.01016319,0.00036308,60]
[392935481,1762156234816,-460.0,0.00036356,2]
[392935482,1762156234825,-441.0,0.00036356,2]
[392935483,1762156234834,-168.0,0.00036363,2]
[392935484,1762156234843,-168.0,0.00036378,7]
[392935485,1762156234851,-151.0,0.00036392,4]
[392935486,1762156234860,-151.0,0.00036392,4]
[392935487,1762156234869,-213.90648152,0.00036392,4]
[392935488,1762156234878,-151.38287914,0.00036392,4]
[392935489,1762156234887,-151.0,0.00036392,4]
[392935490,1762156234896,-151.0,0.00036392,4]
[392935491,1762156234905,-151.0,0.00036392,4]
[392935492,1762156234914,-500.0,0.00036392,4]
[392935493,1762156234923,-208.02257109,0.00036392,4]
[392935494,1762156234932,-151.0,0.00036392,4]
[392935495,1762156234941,-151.0,0.00036392,4]
[392935496,1762156234950,-500.0,0.00036392,4]
[392935497,1762156234959,-151.0,0.00036392,4]
[392935498,1762156234968,-4133.14590554,0.00036393,5]
[392935499,1762156234978,-460.0,0.00036411,2]
[392935500,1762156234987,-441.0,0.00036411,2]
[392935501,1762156234996,-151.0,0.00036447,4]
[392935502,1762156235005,-151.0,0.00036447,4]
[392935503,1762156235013,-151.0,0.00036447,4]
[392935504,1762156235022,-151.0,0.00036447,4]
[392935505,1762156235031,-151.0,0.00036447,4]
[392935506,1762156235040,-500.0,0.00036447,4]
[392935507,1762156235049,-151.0,0.00036447,4]
[392935508,1762156235058,-151.0,0.00036447,4]
[392935509,1762156235067,-500.0,0.00036447,4]
[392935510,1762156235166,-151.0,0.00036447,4]